[Event "Early-Titled-Tuesday-Blitz-September-12-2023"]
[Site "Chess.com"]
[Date "2023.09.12"]
[Round "10"]
[White "DanyKopy"]
[Black "RandomNoob04"]
[Result "1-0"]
[WhiteElo "2543"]
[BlackElo "2628"]
[TimeControl "180+1"]
[EndTime "9:56:47 PDT"]
[Termination "DanyKopy won by resignation"]

1. d4 {[%clk 0:03:00.9]} 1... Nf6 {[%clk 0:02:58.1]} 2. Nf3 {[%clk 0:02:59.5]}
2... c5 {[%clk 0:02:58.1]} 3. d5 {[%clk 0:02:58.8]} 3... b5 {[%clk 0:02:56.7]}
4. Bg5 {[%clk 0:02:55.3]} 4... Qb6 {[%clk 0:02:56.1]} 5. e3 {[%clk 0:02:47.3]}
5... Bb7 {[%clk 0:02:49.4]} 6. Bxf6 {[%clk 0:02:41.5]} 6... Qxf6 {[%clk
0:02:47.1]} 7. c3 {[%clk 0:02:33.6]} 7... a6 {[%clk 0:02:47.1]} 8. e4 {[%clk
0:02:32.3]} 8... d6 {[%clk 0:02:46.7]} 9. a4 {[%clk 0:02:31.6]} 9... b4 {[%clk
0:02:46.7]} 10. Bd3 {[%clk 0:02:29.4]} 10... g6 {[%clk 0:02:46.2]} 11. O-O
{[%clk 0:02:29.2]} 11... Bg7 {[%clk 0:02:46.4]} 12. a5 {[%clk 0:02:24.9]} 12...
O-O {[%clk 0:02:43.8]} 13. Re1 {[%clk 0:02:18.3]} 13... Nd7 {[%clk 0:02:43.4]}
14. Qa4 {[%clk 0:02:10.4]} 14... Rfd8 {[%clk 0:02:34.1]} 15. Rc1 {[%clk
0:02:03.8]} 15... Rac8 {[%clk 0:02:11.8]} 16. Nbd2 {[%clk 0:02:02.4]} 16... bxc3
{[%clk 0:02:10.5]} 17. bxc3 {[%clk 0:02:02]} 17... Rc7 {[%clk 0:02:04.2]} 18.
Rab1 {[%clk 0:01:54]} 18... Bh6 {[%clk 0:02:03]} 19. Rc2 {[%clk 0:01:49.6]}
19... Bc8 {[%clk 0:02:01.2]} 20. Nc4 {[%clk 0:01:47.1]} 20... Bf4 {[%clk
0:01:55.6]} 21. Nb6 {[%clk 0:01:35.1]} 21... Ne5 {[%clk 0:01:50.8]} 22. Nxe5
{[%clk 0:01:29.5]} 22... Bxe5 {[%clk 0:01:51.7]} 23. Nxc8 {[%clk 0:01:28.5]}
23... Rcxc8 {[%clk 0:01:52.1]} 24. Bxa6 {[%clk 0:01:27.9]} 24... Rb8 {[%clk
0:01:52.4]} 25. Rxb8 {[%clk 0:01:23.3]} 25... Rxb8 {[%clk 0:01:53.3]} 26. Bb5
{[%clk 0:01:21.9]} 26... Qf4 {[%clk 0:01:22.3]} 27. g3 {[%clk 0:01:21.2]} 27...
Qf3 {[%clk 0:01:22.4]} 28. a6 {[%clk 0:00:54.4]} 28... Rxb5 {[%clk 0:01:21]} 29.
Qxb5 {[%clk 0:00:20.2]} 29... Qd1+ {[%clk 0:01:20.3]} 30. Kg2 {[%clk 0:00:20.5]}
30... Qxc2 {[%clk 0:01:21.2]} 31. a7 {[%clk 0:00:20.7]} 31... Qxe4+ {[%clk
0:01:21.1]} 32. Kg1 {[%clk 0:00:19.4]} 32... Qxd5 {[%clk 0:00:50.5]} 33. Qb8+
{[%clk 0:00:18.9]} 33... Kg7 {[%clk 0:00:50.5]} 34. a8=Q {[%clk 0:00:19.8]}
34... Qxa8 {[%clk 0:00:35.1]} 35. Qxa8 {[%clk 0:00:20.7]} 35... Bxc3 {[%clk
0:00:35.8]} 36. Kg2 {[%clk 0:00:18.7]} 36... Bf6 {[%clk 0:00:34.5]} 37. f4
{[%clk 0:00:18.2]} 37... c4 {[%clk 0:00:33.3]} 38. Qc6 {[%clk 0:00:17.5]} 38...
c3 {[%clk 0:00:30.9]} 39. g4 {[%clk 0:00:17.4]} 39... g5 {[%clk 0:00:28.7]} 40.
fxg5 {[%clk 0:00:17.1]} 40... Be5 {[%clk 0:00:28.6]} 41. h4 {[%clk 0:00:17]}
41... e6 {[%clk 0:00:26]} 42. Kf3 {[%clk 0:00:17]} 42... d5 {[%clk 0:00:26.1]}
43. h5 {[%clk 0:00:16.9]} 43... d4 {[%clk 0:00:25.5]} 44. Ke4 {[%clk 0:00:16.8]}
44... f6 {[%clk 0:00:21.1]} 45. Qd7+ {[%clk 0:00:15.8]} 45... Kf8 {[%clk
0:00:20.3]} 46. gxf6 {[%clk 0:00:14.3]} 46... Bxf6 {[%clk 0:00:20.3]} 47. Qxe6
{[%clk 0:00:14.2]} 47... Bh8 {[%clk 0:00:11.8]} 48. Qc8+ {[%clk 0:00:13.4]}
48... Kg7 {[%clk 0:00:11.9]} 49. Kxd4 {[%clk 0:00:12.6]} 49... c2 {[%clk
0:00:11.5]} 50. Qxc2 {[%clk 0:00:11.8]} 50... Kh6+ {[%clk 0:00:11.6]} 51. Ke4
{[%clk 0:00:12]} 51... Bf6 {[%clk 0:00:07.8]} 52. Kf5 {[%clk 0:00:11.1]} 52...
Kg7 {[%clk 0:00:05]} 53. Qc7+ {[%clk 0:00:10.4]} 53... Kh6 {[%clk 0:00:05.9]}
54. g5+ {[%clk 0:00:08.4]} 54... Bxg5 {[%clk 0:00:05.4]} 55. Qc6+ {[%clk
0:00:08]} 55... Kg7 {[%clk 0:00:04.4]} 56. Kxg5 {[%clk 0:00:07.5]} 56... h6+
{[%clk 0:00:04.7]} 57. Qxh6+ {[%clk 0:00:06.9]} 1-0

[Event "Early-Titled-Tuesday-Blitz-September-12-2023"]
[Site "Chess.com"]
[Date "2023.09.12"]
[Round "10"]
[White "MatthewG-p4p"]
[Black "seramoral"]
[Result "1-0"]
[WhiteElo "2887"]
[BlackElo "2628"]
[TimeControl "180+1"]
[EndTime "9:56:50 PDT"]
[Termination "MatthewG-p4p won by checkmate"]

1. f4 {[%clk 0:02:58.5]} 1... g6 {[%clk 0:02:58.6]} 2. Nf3 {[%clk 0:02:58.9]}
2... Bg7 {[%clk 0:02:56.5]} 3. g3 {[%clk 0:02:59.6]} 3... d5 {[%clk 0:02:55.6]}
4. Bg2 {[%clk 0:03:00.3]} 4... c5 {[%clk 0:02:54.6]} 5. O-O {[%clk 0:03:01]}
5... Nc6 {[%clk 0:02:53.2]} 6. d3 {[%clk 0:03:01.5]} 6... Nf6 {[%clk 0:02:46.3]}
7. Nc3 {[%clk 0:03:01.5]} 7... O-O {[%clk 0:02:43.6]} 8. e4 {[%clk 0:03:01.1]}
8... d4 {[%clk 0:02:32.5]} 9. Na4 {[%clk 0:02:59.8]} 9... b6 {[%clk 0:02:31.2]}
10. a3 {[%clk 0:02:53.3]} 10... Re8 {[%clk 0:02:21.8]} 11. c4 {[%clk 0:02:52.6]}
11... e5 {[%clk 0:02:18.7]} 12. f5 {[%clk 0:02:20]} 12... gxf5 {[%clk
0:02:17.6]} 13. Nh4 {[%clk 0:02:19.7]} 13... fxe4 {[%clk 0:02:03]} 14. Bg5
{[%clk 0:02:19.3]} 14... Bg4 {[%clk 0:01:39.1]} 15. Qe1 {[%clk 0:01:57.9]} 15...
Re6 {[%clk 0:01:20.2]} 16. Bxe4 {[%clk 0:01:47.8]} 16... h6 {[%clk 0:01:18.7]}
17. Bxf6 {[%clk 0:01:46.2]} 17... Rxf6 {[%clk 0:01:17.5]} 18. b4 {[%clk
0:01:10.8]} 18... Rc8 {[%clk 0:01:03]} 19. bxc5 {[%clk 0:01:08.6]} 19... bxc5
{[%clk 0:01:02.8]} 20. Nxc5 {[%clk 0:01:09.1]} 20... Ne7 {[%clk 0:01:03.1]} 21.
Nb3 {[%clk 0:00:43.4]} 21... Rb8 {[%clk 0:00:53]} 22. Nd2 {[%clk 0:00:39.9]}
22... Ng6 {[%clk 0:00:49.5]} 23. Nf5 {[%clk 0:00:37.5]} 23... Bxf5 {[%clk
0:00:45.8]} 24. Bxf5 {[%clk 0:00:37.8]} 24... Ne7 {[%clk 0:00:43.8]} 25. g4
{[%clk 0:00:18.7]} 25... Qc7 {[%clk 0:00:40]} 26. Ne4 {[%clk 0:00:17.4]} 26...
Rfb6 {[%clk 0:00:37.4]} 27. Qg3 {[%clk 0:00:17.5]} 27... Qc6 {[%clk 0:00:29.5]}
28. Rae1 {[%clk 0:00:12.3]} 28... Rb3 {[%clk 0:00:25.7]} 29. g5 {[%clk
0:00:11.5]} 29... Nxf5 {[%clk 0:00:20.2]} 30. Rxf5 {[%clk 0:00:12.4]} 30... Rb1
{[%clk 0:00:20.7]} 31. Nf6+ {[%clk 0:00:05.4]} 31... Kh8 {[%clk 0:00:15.8]} 32.
Rxe5 {[%clk 0:00:05.7]} 32... Bxf6 {[%clk 0:00:12.9]} 33. gxf6 {[%clk
0:00:03.9]} 33... Rg8 {[%clk 0:00:06.7]} 34. Rxb1 {[%clk 0:00:03]} 34... Rxg3+
{[%clk 0:00:06.4]} 35. hxg3 {[%clk 0:00:03.9]} 35... Qxf6 {[%clk 0:00:06.6]} 36.
Ree1 {[%clk 0:00:03]} 36... Kh7 {[%clk 0:00:06.9]} 37. Rf1 {[%clk 0:00:03.1]}
37... Qg6 {[%clk 0:00:07.6]} 38. Rf3 {[%clk 0:00:03.4]} 38... f5 {[%clk
0:00:07.4]} 39. Rb7+ {[%clk 0:00:03.7]} 39... Kh8 {[%clk 0:00:07.5]} 40. Rb5
{[%clk 0:00:04.6]} 40... Qg4 {[%clk 0:00:06.7]} 41. Kf2 {[%clk 0:00:04.4]} 41...
Qh3 {[%clk 0:00:06]} 42. Rbxf5 {[%clk 0:00:04.7]} 42... Qh2+ {[%clk 0:00:06.4]}
43. Ke1 {[%clk 0:00:05.5]} 43... Qg1+ {[%clk 0:00:06.7]} 44. Kd2 {[%clk
0:00:05.8]} 44... Qg2+ {[%clk 0:00:06.9]} 45. Kc1 {[%clk 0:00:06.3]} 45... Qg1+
{[%clk 0:00:07]} 46. Kc2 {[%clk 0:00:07]} 46... Qa1 {[%clk 0:00:06.7]} 47. Rf8+
{[%clk 0:00:05.3]} 47... Kg7 {[%clk 0:00:07]} 48. R8f7+ {[%clk 0:00:06.2]} 48...
Kg6 {[%clk 0:00:07.4]} 49. R7f6+ {[%clk 0:00:06.9]} 49... Kg5 {[%clk 0:00:08.2]}
50. R6f5+ {[%clk 0:00:07.6]} 50... Kg6 {[%clk 0:00:08.1]} 51. c5 {[%clk
0:00:07.5]} 51... Qa2+ {[%clk 0:00:07.7]} 52. Kd1 {[%clk 0:00:08.1]} 52... Qxa3
{[%clk 0:00:08.2]} 53. Rf6+ {[%clk 0:00:06.8]} 53... Kg5 {[%clk 0:00:08]} 54. c6
{[%clk 0:00:07.7]} 54... Qa1+ {[%clk 0:00:08]} 55. Ke2 {[%clk 0:00:08.3]} 55...
Qb2+ {[%clk 0:00:08.3]} 56. Kf1 {[%clk 0:00:09.1]} 56... Qc1+ {[%clk 0:00:08.6]}
57. Kg2 {[%clk 0:00:09.7]} 57... Qc2+ {[%clk 0:00:09]} 58. Kh3 {[%clk
0:00:10.2]} 58... Qc5 {[%clk 0:00:06.5]} 59. c7 {[%clk 0:00:10.7]} 59... Qxc7
{[%clk 0:00:06.5]} 60. R3f5# {[%clk 0:00:11]} 1-0

[Event "Early-Titled-Tuesday-Blitz-September-12-2023"]
[Site "Chess.com"]
[Date "2023.09.12"]
[Round "10"]
[White "Fh2411"]
[Black "enestnrvrd"]
[Result "1-0"]
[WhiteElo "2607"]
[BlackElo "2719"]
[TimeControl "180+1"]
[EndTime "9:56:54 PDT"]
[Termination "Fh2411 won on time"]

1. d4 {[%clk 0:03:00.9]} 1... Nf6 {[%clk 0:02:59.9]} 2. Nf3 {[%clk 0:03:00.9]}
2... g6 {[%clk 0:03:00.4]} 3. Bf4 {[%clk 0:03:01.1]} 3... Bg7 {[%clk 0:03:01.3]}
4. e3 {[%clk 0:03:01.7]} 4... O-O {[%clk 0:03:01.9]} 5. Be2 {[%clk 0:03:01.8]}
5... d6 {[%clk 0:03:02.5]} 6. O-O {[%clk 0:03:02.4]} 6... Nbd7 {[%clk
0:03:02.8]} 7. h3 {[%clk 0:02:59.1]} 7... Qe8 {[%clk 0:03:00.5]} 8. c4 {[%clk
0:02:57.6]} 8... e5 {[%clk 0:03:00.7]} 9. Bh2 {[%clk 0:02:58.1]} 9... Ne4 {[%clk
0:03:00.8]} 10. Qc2 {[%clk 0:02:53.2]} 10... f5 {[%clk 0:02:58.4]} 11. Rd1
{[%clk 0:02:50.7]} 11... Qe7 {[%clk 0:02:58.2]} 12. Nbd2 {[%clk 0:02:36.4]}
12... Nxd2 {[%clk 0:02:57.5]} 13. Qxd2 {[%clk 0:02:30]} 13... e4 {[%clk
0:02:39]} 14. Ne1 {[%clk 0:02:22.7]} 14... Nf6 {[%clk 0:02:37.1]} 15. Nc2 {[%clk
0:02:11.6]} 15... g5 {[%clk 0:02:37]} 16. d5 {[%clk 0:02:06.4]} 16... Bd7 {[%clk
0:02:32.2]} 17. Nd4 {[%clk 0:02:06.7]} 17... Rae8 {[%clk 0:02:31.6]} 18. b4
{[%clk 0:02:04.2]} 18... f4 {[%clk 0:02:24.6]} 19. exf4 {[%clk 0:01:59.7]} 19...
e3 {[%clk 0:02:24.5]} 20. Qxe3 {[%clk 0:01:53.8]} 20... Qxe3 {[%clk 0:02:22.3]}
21. fxe3 {[%clk 0:01:53.4]} 21... Rxe3 {[%clk 0:02:22.9]} 22. fxg5 {[%clk
0:01:50.6]} 22... Ne4 {[%clk 0:02:19.5]} 23. Bf1 {[%clk 0:01:35.2]} 23... Nc3
{[%clk 0:02:10.2]} 24. Rd2 {[%clk 0:01:23.7]} 24... Ne4 {[%clk 0:02:05.3]} 25.
Rdd1 {[%clk 0:01:23.8]} 25... a5 {[%clk 0:01:59.9]} 26. b5 {[%clk 0:01:18.1]}
26... a4 {[%clk 0:01:41.8]} 27. Rac1 {[%clk 0:01:03.6]} 27... a3 {[%clk
0:01:35]} 28. Rc2 {[%clk 0:00:59.5]} 28... Nc3 {[%clk 0:01:33.9]} 29. Rdd2
{[%clk 0:00:21]} 29... Bf5 {[%clk 0:01:32.5]} 30. Nxf5 {[%clk 0:00:20.2]} 30...
Rxf5 {[%clk 0:01:32.9]} 31. Rf2 {[%clk 0:00:19.5]} 31... Rxf2 {[%clk 0:01:31.8]}
32. Rxf2 {[%clk 0:00:20.4]} 32... Bd4 {[%clk 0:01:32.2]} 33. Kh1 {[%clk
0:00:17.6]} 33... Re1 {[%clk 0:01:32.4]} 34. Rf4 {[%clk 0:00:17.9]} 34... Be3
{[%clk 0:01:27.2]} 35. Rf3 {[%clk 0:00:18.1]} 35... Nxa2 {[%clk 0:01:27]} 36.
Bg3 {[%clk 0:00:18.7]} 36... Rxf1+ {[%clk 0:01:02.1]} 37. Rxf1 {[%clk
0:00:19.6]} 37... Nc1 {[%clk 0:00:55.9]} 38. Be1 {[%clk 0:00:17.5]} 38... Nb3
{[%clk 0:00:43.4]} 39. Bc3 {[%clk 0:00:16.3]} 39... a2 {[%clk 0:00:43.4]} 40. h4
{[%clk 0:00:15.7]} 40... Bc1 {[%clk 0:00:24.8]} 41. Kh2 {[%clk 0:00:10.3]} 41...
h6 {[%clk 0:00:23]} 42. g6 {[%clk 0:00:09.7]} 42... Be3 {[%clk 0:00:18.1]} 43.
Kh3 {[%clk 0:00:06.2]} 43... h5 {[%clk 0:00:15.6]} 44. g4 {[%clk 0:00:05.6]}
44... Nd2 {[%clk 0:00:12.4]} 45. Re1 {[%clk 0:00:02]} 45... Ne4 {[%clk
0:00:09.5]} 46. Rxe3 {[%clk 0:00:02.1]} 46... Nxc3 {[%clk 0:00:09.7]} 47. Re8+
{[%clk 0:00:01.9]} 47... Kg7 {[%clk 0:00:09.6]} 48. Ra8 {[%clk 0:00:02.8]} 48...
Kxg6 {[%clk 0:00:05.1]} 49. gxh5+ {[%clk 0:00:03.7]} 49... Kxh5 {[%clk
0:00:05.4]} 50. Ra3 {[%clk 0:00:04.5]} 50... Kg6 {[%clk 0:00:03.4]} 51. Kg4
{[%clk 0:00:04.9]} 51... Kf6 {[%clk 0:00:03.6]} 52. h5 {[%clk 0:00:05.3]} 52...
b6 {[%clk 0:00:02.5]} 53. Kh4 {[%clk 0:00:04.9]} 53... Kf5 {[%clk 0:00:02.8]}
54. Ra7 {[%clk 0:00:03.6]} 1-0

[Event "Early-Titled-Tuesday-Blitz-September-12-2023"]
[Site "Chess.com"]
[Date "2023.09.12"]
[Round "10"]
[White "AliKa2810"]
[Black "Gauravthegm"]
[Result "1-0"]
[WhiteElo "2580"]
[BlackElo "2430"]
[TimeControl "180+1"]
[EndTime "9:56:58 PDT"]
[Termination "AliKa2810 won by checkmate"]

1. d4 {[%clk 0:03:00.9]} 1... Nf6 {[%clk 0:02:59.8]} 2. c4 {[%clk 0:03:01.1]}
2... e6 {[%clk 0:02:59.6]} 3. Nc3 {[%clk 0:02:59.6]} 3... b6 {[%clk 0:02:59.9]}
4. e4 {[%clk 0:02:57.5]} 4... d6 {[%clk 0:02:57]} 5. Bd3 {[%clk 0:02:57.6]} 5...
e5 {[%clk 0:02:55.6]} 6. Nf3 {[%clk 0:02:52.2]} 6... Nbd7 {[%clk 0:02:52]} 7.
O-O {[%clk 0:02:50.4]} 7... Be7 {[%clk 0:02:51.2]} 8. d5 {[%clk 0:02:46.3]} 8...
O-O {[%clk 0:02:50.7]} 9. h3 {[%clk 0:02:39.5]} 9... Nc5 {[%clk 0:02:50.6]} 10.
Bc2 {[%clk 0:02:39.2]} 10... a5 {[%clk 0:02:50.3]} 11. Be3 {[%clk 0:02:39.3]}
11... Kh8 {[%clk 0:02:45.8]} 12. a3 {[%clk 0:02:39.5]} 12... Ng8 {[%clk
0:02:27.1]} 13. b4 {[%clk 0:02:38.6]} 13... axb4 {[%clk 0:02:24.1]} 14. axb4
{[%clk 0:02:39.5]} 14... Rxa1 {[%clk 0:02:24.1]} 15. Qxa1 {[%clk 0:02:40.4]}
15... Na6 {[%clk 0:02:24.3]} 16. Qb1 {[%clk 0:02:34.3]} 16... g6 {[%clk
0:02:18.1]} 17. Nd2 {[%clk 0:02:17.9]} 17... f5 {[%clk 0:02:15.9]} 18. exf5
{[%clk 0:02:17.4]} 18... gxf5 {[%clk 0:02:13.5]} 19. f4 {[%clk 0:02:17.3]} 19...
e4 {[%clk 0:02:09]} 20. Nb5 {[%clk 0:02:08.6]} 20... Bf6 {[%clk 0:01:55.9]} 21.
Nd4 {[%clk 0:02:07.9]} 21... Qe8 {[%clk 0:01:42]} 22. Rd1 {[%clk 0:02:01.8]}
22... Qg6 {[%clk 0:01:40.9]} 23. Nf1 {[%clk 0:02:01.6]} 23... Ne7 {[%clk
0:01:33.3]} 24. Ba4 {[%clk 0:01:52.5]} 24... Rg8 {[%clk 0:01:29.6]} 25. Rd2
{[%clk 0:01:49.5]} 25... Qg7 {[%clk 0:01:21.1]} 26. Bb5 {[%clk 0:01:21.9]} 26...
Nb8 {[%clk 0:01:12.5]} 27. Qa2 {[%clk 0:01:12]} 27... Ng6 {[%clk 0:01:07.8]} 28.
Kh2 {[%clk 0:00:36.9]} 28... Nxf4 {[%clk 0:00:53.2]} 29. Bxf4 {[%clk 0:00:20]}
29... Bxd4 {[%clk 0:00:53.4]} 30. Rxd4 {[%clk 0:00:18]} 30... Qxd4 {[%clk
0:00:52.2]} 31. Bc1 {[%clk 0:00:18.6]} 31... Qe5+ {[%clk 0:00:39]} 32. Kh1
{[%clk 0:00:19]} 32... Rg7 {[%clk 0:00:27.4]} 33. Bb2 {[%clk 0:00:19.4]} 33...
Qe7 {[%clk 0:00:26.9]} 34. Qa8 {[%clk 0:00:18.5]} 34... h5 {[%clk 0:00:13.3]}
35. Qxb8 {[%clk 0:00:18.2]} 35... Kh7 {[%clk 0:00:13.8]} 36. Bxg7 {[%clk
0:00:16.9]} 36... e3 {[%clk 0:00:13.3]} 37. Nxe3 {[%clk 0:00:15.5]} 37... Qxe3
{[%clk 0:00:12]} 38. Qxc8 {[%clk 0:00:10.2]} 38... Qc1+ {[%clk 0:00:10]} 39. Kh2
{[%clk 0:00:10.8]} 39... Qf4+ {[%clk 0:00:09.8]} 40. Kg1 {[%clk 0:00:11.4]}
40... Qe3+ {[%clk 0:00:08.2]} 41. Kf1 {[%clk 0:00:11.9]} 41... Qc1+ {[%clk
0:00:06.2]} 42. Ke2 {[%clk 0:00:12.1]} 42... Qc2+ {[%clk 0:00:06.4]} 43. Kf3
{[%clk 0:00:12]} 43... Qd3+ {[%clk 0:00:06.1]} 44. Kf4 {[%clk 0:00:12]} 44...
Qe4+ {[%clk 0:00:06.1]} 45. Kg5 {[%clk 0:00:12.5]} 45... Qe3+ {[%clk 0:00:03.8]}
46. Kxh5 {[%clk 0:00:12.9]} 46... Qe2+ {[%clk 0:00:02.3]} 47. g4 {[%clk
0:00:13.3]} 47... fxg4 {[%clk 0:00:02]} 48. Qf5+ {[%clk 0:00:12.3]} 48... Kxg7
{[%clk 0:00:01.5]} 49. Qxg4+ {[%clk 0:00:12.9]} 49... Qxg4+ {[%clk 0:00:01.5]}
50. hxg4 {[%clk 0:00:13.8]} 50... Kf7 {[%clk 0:00:02.4]} 51. g5 {[%clk
0:00:14.4]} 51... Ke7 {[%clk 0:00:03.3]} 52. g6 {[%clk 0:00:15]} 52... Kd8
{[%clk 0:00:04.2]} 53. Kh6 {[%clk 0:00:15.6]} 53... Ke7 {[%clk 0:00:05.1]} 54.
g7 {[%clk 0:00:16]} 54... c6 {[%clk 0:00:05.9]} 55. Bxc6 {[%clk 0:00:15.1]}
55... Kf6 {[%clk 0:00:06.2]} 56. g8=Q {[%clk 0:00:14.9]} 56... Ke5 {[%clk
0:00:07.1]} 57. Qe6+ {[%clk 0:00:14]} 57... Kd4 {[%clk 0:00:08]} 58. Qxd6 {[%clk
0:00:14.4]} 58... Kxc4 {[%clk 0:00:08.2]} 59. b5 {[%clk 0:00:14.8]} 59... Kb3
{[%clk 0:00:08.3]} 60. Qe5 {[%clk 0:00:15.1]} 60... Ka4 {[%clk 0:00:09.2]} 61.
d6 {[%clk 0:00:15.8]} 61... Ka5 {[%clk 0:00:09.2]} 62. d7 {[%clk 0:00:16.4]}
62... Ka4 {[%clk 0:00:09.6]} 63. d8=Q {[%clk 0:00:16.8]} 63... Kb4 {[%clk
0:00:09.9]} 64. Qdd4+ {[%clk 0:00:16.8]} 64... Ka5 {[%clk 0:00:10.3]} 65. Qa1+
{[%clk 0:00:15.9]} 65... Kb4 {[%clk 0:00:10.7]} 66. Qec3# {[%clk 0:00:16.5]} 1-0

[Event "Early-Titled-Tuesday-Blitz-September-12-2023"]
[Site "Chess.com"]
[Date "2023.09.12"]
[Round "10"]
[White "djano"]
[Black "RobertoJBM"]
[Result "1-0"]
[WhiteElo "2661"]
[BlackElo "2794"]
[TimeControl "180+1"]
[EndTime "9:56:59 PDT"]
[Termination "djano won by resignation"]

1. e4 {[%clk 0:03:00.9]} 1... c6 {[%clk 0:02:56.1]} 2. d4 {[%clk 0:03:00.7]}
2... d5 {[%clk 0:02:55.8]} 3. exd5 {[%clk 0:03:01.6]} 3... cxd5 {[%clk
0:02:55.6]} 4. Bd3 {[%clk 0:03:02.2]} 4... Nc6 {[%clk 0:02:55.5]} 5. c3 {[%clk
0:03:02.7]} 5... g6 {[%clk 0:02:55.4]} 6. Nf3 {[%clk 0:03:02.6]} 6... Bf5 {[%clk
0:02:52.7]} 7. O-O {[%clk 0:03:01.6]} 7... Bxd3 {[%clk 0:02:52.2]} 8. Qxd3
{[%clk 0:03:01.6]} 8... Bg7 {[%clk 0:02:50.9]} 9. Re1 {[%clk 0:02:58.2]} 9...
Nf6 {[%clk 0:02:50.7]} 10. Bf4 {[%clk 0:02:48.8]} 10... O-O {[%clk 0:02:50]} 11.
Nbd2 {[%clk 0:02:49.2]} 11... Rc8 {[%clk 0:02:47.4]} 12. h3 {[%clk 0:02:46.1]}
12... Ne8 {[%clk 0:02:44.8]} 13. Qb5 {[%clk 0:02:43.2]} 13... Qd7 {[%clk
0:02:41.8]} 14. a4 {[%clk 0:02:40.5]} 14... b6 {[%clk 0:02:29.4]} 15. Ne5 {[%clk
0:02:22.3]} 15... Nxe5 {[%clk 0:02:22.6]} 16. Bxe5 {[%clk 0:02:22.6]} 16... Qb7
{[%clk 0:02:07.6]} 17. Nf3 {[%clk 0:02:07.5]} 17... Bxe5 {[%clk 0:02:05.4]} 18.
Rxe5 {[%clk 0:02:05.5]} 18... e6 {[%clk 0:02:02.5]} 19. Qb4 {[%clk 0:02:02.9]}
19... Nf6 {[%clk 0:01:59]} 20. a5 {[%clk 0:01:53.3]} 20... Rc6 {[%clk 0:01:53]}
21. Re2 {[%clk 0:01:48]} 21... Rb8 {[%clk 0:01:46.2]} 22. Ne5 {[%clk 0:01:44.4]}
22... Rc7 {[%clk 0:01:46]} 23. a6 {[%clk 0:01:35.6]} 23... Qc8 {[%clk
0:01:43.5]} 24. Re3 {[%clk 0:01:17.6]} 24... Kg7 {[%clk 0:01:38.3]} 25. Qb5
{[%clk 0:01:11.8]} 25... Qe8 {[%clk 0:01:36.2]} 26. Qe2 {[%clk 0:01:11.3]} 26...
Ne4 {[%clk 0:01:34.3]} 27. Rf3 {[%clk 0:01:10.1]} 27... Rbc8 {[%clk 0:01:29]}
28. Qe3 {[%clk 0:01:08.8]} 28... f6 {[%clk 0:01:26.6]} 29. Ng4 {[%clk
0:01:07.5]} 29... Rf7 {[%clk 0:01:10]} 30. Qh6+ {[%clk 0:01:05.8]} 30... Kg8
{[%clk 0:01:09]} 31. h4 {[%clk 0:00:58.6]} 31... Qf8 {[%clk 0:01:05.3]} 32. Qe3
{[%clk 0:00:58.6]} 32... Kh8 {[%clk 0:00:53.2]} 33. Nh6 {[%clk 0:00:56]} 33...
Re7 {[%clk 0:00:52.1]} 34. Ng4 {[%clk 0:00:36.7]} 34... Rf7 {[%clk 0:00:43.1]}
35. Nh6 {[%clk 0:00:34.8]} 35... Re7 {[%clk 0:00:42.6]} 36. Ng4 {[%clk
0:00:35.1]} 36... h5 {[%clk 0:00:38.6]} 37. Ne5 {[%clk 0:00:33]} 37... Qg7
{[%clk 0:00:35]} 38. Nd3 {[%clk 0:00:31.1]} 38... g5 {[%clk 0:00:30.6]} 39. hxg5
{[%clk 0:00:29.6]} 39... fxg5 {[%clk 0:00:28.5]} 40. Ne5 {[%clk 0:00:29]} 40...
Kg8 {[%clk 0:00:26.1]} 41. Rh3 {[%clk 0:00:29]} 41... h4 {[%clk 0:00:24.8]} 42.
g3 {[%clk 0:00:29.2]} 42... Rf8 {[%clk 0:00:19.9]} 43. Rf1 {[%clk 0:00:28.9]}
43... Rf5 {[%clk 0:00:13.9]} 44. gxh4 {[%clk 0:00:23.8]} 44... g4 {[%clk
0:00:14]} 45. Rh2 {[%clk 0:00:22.5]} 45... Kh7 {[%clk 0:00:08.7]} 46. Rg2 {[%clk
0:00:22.8]} 46... Rxe5 {[%clk 0:00:07.9]} 47. dxe5 {[%clk 0:00:21.4]} 47... Rf7
{[%clk 0:00:07.1]} 48. f3 {[%clk 0:00:21.2]} 48... Nc5 {[%clk 0:00:02.8]} 49.
Rxg4 {[%clk 0:00:21.5]} 49... Qf8 {[%clk 0:00:02.5]} 50. Qg5 {[%clk 0:00:21.9]}
50... Rg7 {[%clk 0:00:02.3]} 51. Qxg7+ {[%clk 0:00:21]} 51... Qxg7 {[%clk
0:00:03.2]} 52. Rxg7+ {[%clk 0:00:21.1]} 52... Kxg7 {[%clk 0:00:04.1]} 53. Kf2
{[%clk 0:00:18.8]} 53... Nd3+ {[%clk 0:00:03]} 54. Ke2 {[%clk 0:00:19.3]} 54...
Nxe5 {[%clk 0:00:03.9]} 55. Rg1+ {[%clk 0:00:16.6]} 55... Kh7 {[%clk 0:00:03.4]}
56. h5 {[%clk 0:00:17]} 56... Nc6 {[%clk 0:00:03.5]} 57. b4 {[%clk 0:00:13.7]}
57... b5 {[%clk 0:00:03]} 58. Ke3 {[%clk 0:00:12.4]} 58... e5 {[%clk 0:00:02.6]}
59. Rg6 {[%clk 0:00:12]} 59... d4+ {[%clk 0:00:03.1]} 60. Kd2 {[%clk 0:00:11.6]}
60... dxc3+ {[%clk 0:00:03.4]} 61. Kxc3 {[%clk 0:00:12.5]} 61... Nd4 {[%clk
0:00:04.1]} 62. Rd6 {[%clk 0:00:10.7]} 62... Nxf3 {[%clk 0:00:03.7]} 63. Rd7+
{[%clk 0:00:11.2]} 63... Kh6 {[%clk 0:00:04.4]} 64. Rxa7 {[%clk 0:00:12.1]}
64... e4 {[%clk 0:00:04.9]} 65. Re7 {[%clk 0:00:12.3]} 65... Kxh5 {[%clk
0:00:05]} 66. a7 {[%clk 0:00:12.3]} 1-0